bitfinex-derivatives/quotes_SOLF0:USTF0_20240926
["timestamp","ask_amount","ask_price","bid_price","bid_amount"]
[1727359829089,3.3134065,153.31,153.17,1.3807]
[1727359829090,19.72,153.45,153.19,27.64]
[1727359829395,27.64,153.39,153.25,27.64]
[1727359829590,3.2618,153.28,153.25,27.64]
[1727359829991,3.2622,153.27,153.25,27.64]
[1727359830193,27.64,153.36,153.22,27.64]
[1727359830593,7.5174,153.43,153.25,27.64]
[1727359830897,27.64,153.38,153.25,27.64]
[1727359831197,27.64,153.38,153.21,27.64]
[1727359831198,2.7317,153.37,153.21,27.64]
[1727359831603,27.64,153.35,153.21,27.64]
[1727359831793,3.2622,153.27,153.23,3.2628]
[1727359832192,3.2619,153.28,153.23,3.2627]
[1727359832398,3.2619,153.28,153.21,27.64]
[1727359832399,108.0,153.44,153.27,55.28]
[1727359832597,2.7578,153.43,153.38,27.64]
[1727359832901,108.0,153.44,153.4,27.64]
[1727359833399,7.851,153.59,153.4,27.64]
[1727359833400,1.3663,153.58,153.43,27.64]
[1727359833599,1.3663,153.58,153.4,27.64]
[1727359833600,1.3663,153.58,153.46,27.64]
[1727359833802,29.0063,153.58,153.43,27.64]
[1727359834102,27.64,153.55,153.4,27.64]
[1727359834303,1.3611,153.54,153.4,27.64]
[1727359835605,3.2583,153.45,153.4,27.64]
[1727359835803,27.64,153.53,153.38,27.64]
[1727359836006,27.64,153.53,153.38,30.8996]
[1727359836206,27.64,153.53,153.38,27.64]
[1727359836207,1.0,153.53,153.38,27.64]
[1727359836397,28.64,153.53,153.38,27.64]
[1727359836805,1.0,153.53,153.4,3.2592]
[1727359837011,27.64,153.51,153.37,28.9225]
[1727359837309,1.3906,153.5,153.37,28.9225]
[1727359837712,3.2584,153.45,153.4,3.2592]
[1727359837909,3.2584,153.45,153.4,30.8992]
[1727359838211,3.2581,153.46,153.41,3.2589]
[1727359838414,1.3906,153.5,153.4,27.64]
[1727359840408,1.3906,153.5,153.41,44.74]
[1727359841208,3.2581,153.46,153.41,44.74]
[1727359841412,1.3906,153.5,153.41,44.74]
[1727359841805,1.0,153.53,153.41,44.74]
[1727359842210,1.0,153.53,153.42,3.2588]
[1727359842916,3.2579,153.47,153.43,3.2586]
[1727359843713,1.0,153.53,153.41,44.74]
[1727359844010,1.0,153.53,153.4,1.3198]
[1727359844409,3.2581,153.46,153.4,1.3198]
[1727359844609,1.0,153.53,153.44,44.74]
[1727359844810,22.75601546,153.65,153.49,44.74]
[1727359844811,44.74,153.63,153.49,44.74]
[1727359845012,44.74,153.6,153.46,44.74]
[1727359845410,3.2571,153.51,153.46,47.9979]
[1727359845609,44.74,153.58,153.43,44.74]
[1727359845810,44.74,153.58,153.4,1.3198]
[1727359845811,44.74,153.55,153.41,44.74]
[1727359846014,2.6548,153.54,153.41,44.74]
[1727359846412,4.0231,153.54,153.41,44.74]
[1727359846617,44.74,153.52,153.41,44.74]
[1727359847114,44.74,153.5,153.38,44.74]
[1727359847615,44.74,153.52,153.38,44.74]
[1727359848625,44.74,153.49,153.38,44.74]
[1727359848816,44.74,153.52,153.38,44.74]
[1727359849718,44.74,153.52,153.37,1.2825]
[1727359849719,44.74,153.52,153.39,3.2593]
[1727359849924,44.74,153.49,153.37,1.2825]
[1727359850322,3.2587,153.43,153.38,3.2595]
[1727359850521,44.74,153.49,153.37,46.0225]
[1727359850717,3.2584,153.44,153.37,46.0225]
[1727359850919,9.7529,153.8,153.43,89.48]
[1727359851121,2.6295,153.64,153.54,44.74]
[1727359851425,1.3023,153.66,153.57,44.74]
[1727359851925,44.74,153.7,153.57,44.74]
[1727359852224,1.3023,153.73,153.57,44.74]
[1727359852422,1.3023,153.73,153.56,3.26834039]
[1727359852423,46.0423,153.73,153.59,44.74]
[1727359853017,3.2534,153.68,153.62,3.2544]
[1727359853214,46.0423,153.73,153.59,44.74]
[1727359853414,46.0423,153.73,153.58,3.2554]
[1727359853415,3.254,153.65,153.58,3.2554]
[1727359853615,44.74,153.7,153.55,1.3798]
[1727359854018,44.74,153.64,153.52,3.30033862]
[1727359854221,44.74,153.64,153.51,44.74]
[1727359854424,3.2563,153.54,153.48,3.2575]
[1727359854720,22.5034,153.66,153.42,44.74]
[1727359854721,44.74,153.59,153.42,44.74]
[1727359855121,44.74,153.59,153.45,44.74]
[1727359856021,44.74,153.59,153.43,44.74]
[1727359856217,44.74,153.56,153.43,44.74]
[1727359856522,2.5815,153.55,153.43,44.74]
[1727359857829,3.2572,153.5,153.45,3.2581]
[1727359858125,2.5815,153.55,153.43,44.74]
[1727359858329,2.5815,153.55,153.45,44.74]
[1727359858626,2.5815,153.55,153.45,47.9982]
[1727359859035,257.92729464,155.45,153.54,44.74]
[1727359859036,9.7562,153.75,153.54,44.74]
[1727359859328,2.7032,153.69,153.58,44.74]
[1727359860125,2.7032,153.69,153.58,47.9952]
[1727359860622,3.2543,153.64,153.59,44.74]
[1727359860818,2.7032,153.69,153.59,44.74]
[1727359861231,3.254,153.65,153.59,44.74]
[1727359862119,3.2542,153.64,153.59,44.74]
[1727359862722,2.7032,153.69,153.59,44.74]
[1727359863022,2.7032,153.69,153.57,44.74]
[1727359863218,3.2533,153.68,153.63,47.9942]
[1727359863422,1.3803,153.73,153.63,47.9942]
[1727359864129,1.3803,153.73,153.63,44.74]
[1727359864729,3.2527,153.71,153.66,3.2537]
[1727359864929,1.2939,153.74,153.66,3.2537]
[1727359865126,1.2939,153.74,153.58,1.3243]
[1727359865127,46.0339,153.74,153.61,44.74]
[1727359865330,3.2534,153.68,153.64,3.254]
[1727359865722,1.2939,153.74,153.64,44.74]
[1727359865924,3.2531,153.69,153.65,3.2538]
[1727359866127,1.2939,153.74,153.57,3.25636683]
[1727359866331,1.2939,153.74,153.61,44.74]
[1727359867033,3.2535,153.68,153.61,44.74]
[1727359867421,1.2939,153.74,153.61,44.74]
[1727359867737,111.2536,153.67,153.63,3.2542]
[1727359868035,108.0,153.67,153.61,44.74]
[1727359868238,108.0,153.67,153.59,1.292]
[1727359868239,108.0,153.67,153.65,44.74]
[1727359868423,107.0604,153.67,153.66,3.2537]
[1727359869032,104.9506,153.67,153.66,3.2537]
[1727359869736,104.9506,153.67,153.59,1.292]
[1727359869737,104.9506,153.67,153.62,44.74]
[1727359870729,104.9506,153.67,153.65,44.74]
[1727359870935,104.9506,153.67,153.66,3.2537]
[1727359871131,104.9506,153.67,153.65,44.74]
[1727359871533,104.9506,153.67,153.66,3.2537]
[1727359871733,104.9506,153.67,153.65,44.74]
[1727359872834,104.9506,153.67,153.65,47.9939]
[1727359873136,104.9506,153.67,153.65,44.74]
[1727359874238,104.9506,153.67,153.65,47.9938]
[1727359874438,104.9506,153.67,153.63,44.74]
[1727359874632,104.9506,153.67,153.62,44.74]
[1727359874832,104.9506,153.67,153.62,47.9944]
[1727359875032,104.9506,153.67,153.62,44.74]
[1727359875432,104.9506,153.67,153.62,47.9944]
[1727359875835,104.9506,153.67,153.62,44.74]
[1727359876030,104.9506,153.67,153.63,3.2543]
[1727359876237,104.9506,153.67,153.62,44.74]
[1727359876632,108.2042,153.67,153.62,47.9944]
[1727359877040,104.9506,153.67,153.59,124.152]
[1727359877637,104.9506,153.67,153.59,122.86]
[1727359877835,104.9506,153.67,153.62,44.74]
[1727359878241,104.9506,153.67,153.59,78.12]
[1727359878242,104.9506,153.67,153.64,44.74]
[1727359878438,104.9506,153.67,153.65,27.48]
[1727359880037,104.9506,153.67,153.62,27.48]
[1727359880337,104.9506,153.67,153.59,78.12]
[1727359880338,104.9506,153.67,153.6,27.48]
[1727359881339,3.2541,153.65,153.6,27.48]
[1727359881541,104.9506,153.67,153.6,27.48]
[1727359881741,3.2538,153.66,153.61,3.2546]
[1727359881941,104.9506,153.67,153.6,27.5]
[1727359882339,3.2541,153.65,153.6,30.7549]
[1727359883441,104.9506,153.67,153.6,30.7549]
[1727359883740,104.9506,153.67,153.6,27.5]
[1727359884143,104.9506,153.67,153.59,81.3751]
[1727359884444,3.2543,153.64,153.59,81.3751]
[1727359885047,108.2042,153.67,153.6,27.5]
[1727359885236,4.0356,153.77,153.65,27.5]
[1727359885444,4.0356,153.77,153.65,30.80728657]
[1727359885742,4.0356,153.77,153.66,1.3214]
[1727359886350,4.0356,153.77,153.67,3.2535]
[1727359886648,3.2526,153.72,153.67,3.2535]
[1727359886943,3.2526,153.72,153.68,3.2532]
[1727359887746,4.0356,153.77,153.66,28.8214]
[1727359887747,3.2521,153.74,153.66,28.8214]
[1727359888442,4.0356,153.77,153.66,28.8214]
[1727359888643,4.0356,153.77,153.69,27.5]
[1727359888943,3.252,153.75,153.69,27.5]
[1727359889340,3.2519,153.75,153.7,3.2527]
[1727359889545,3.2519,153.75,153.69,27.5]
[1727359889948,3.2519,153.75,153.71,3.2525]
[1727359890146,27.5,153.82,153.66,1.3214]
[1727359890347,30.2118,153.82,153.69,27.5]
[1727359890537,30.2118,153.82,153.73,3.2522]
[1727359890744,3.2516,153.77,153.69,27.5]
[1727359891845,1.3977,153.88,153.75,27.5]
[1727359892045,2.684,153.87,153.75,27.5]
[1727359892238,2.684,153.87,153.76,3.2515]
[1727359892843,30.184,153.87,153.71,27.5]
[1727359893352,2.684,153.87,153.75,27.5]
[1727359893647,2.684,153.87,153.78,27.5]
[1727359894247,2.684,153.87,153.76,1.3615]
[1727359894548,30.184,153.87,153.74,78.08]
[1727359894744,3.2516,153.76,153.74,78.08]
[1727359895945,30.184,153.87,153.74,78.08]
[1727359896141,6.4991,153.86,153.74,78.08]
[1727359896346,3.2518,153.75,153.74,78.08]
[1727359897746,3.2529,153.7,153.66,28.8418]
[1727359898156,2.7807,153.8,153.69,27.5]
[1727359898349,1.3185,153.79,153.69,27.5]
[1727359899748,3.2526,153.72,153.69,27.5]
[1727359899953,1.3185,153.79,153.66,28.8418]
[1727359900160,6.5024,153.78,153.66,28.8418]
[1727359901051,3.2528,153.71,153.66,28.8418]
[1727359901658,1.3185,153.79,153.66,28.8418]
[1727359902258,1.3185,153.79,153.66,27.5]
[1727359902556,28.8185,153.79,153.66,27.5]
[1727359902957,3.253,153.7,153.66,27.5]
[1727359903262,28.8185,153.79,153.66,27.5]
[1727359903454,27.5,153.77,153.65,78.06]
[1727359904051,1.3185,153.79,153.61,28.8464]
[1727359904052,27.5,153.74,153.61,28.8464]
[1727359904359,28.8185,153.79,153.56,106.9289]
[1727359904360,27.5,153.71,153.56,106.9289]
[1727359904565,1.349,153.73,153.56,105.58]
[1727359904566,27.5,153.69,153.56,105.58]
[1727359904754,27.5,153.69,153.56,78.08]
[1727359904955,27.5,153.69,153.54,27.5]
[1727359904956,3.2558,153.57,153.54,3.3011146]
[1727359905157,27.5,153.63,153.47,108.2255]
[1727359905362,27.5,153.61,153.47,108.2255]
[1727359905658,30.2093,153.7,153.54,27.5]
[1727359905865,1.349,153.67,153.54,27.5]
[1727359906066,1.349,153.67,153.56,30.7558]
[1727359906361,2.7093,153.7,153.59,27.5]
[1727359906662,2.7093,153.7,153.57,1.2838]
[1727359906860,2.7093,153.7,153.58,27.5]
[1727359907455,2.7093,153.7,153.61,27.5]
[1727359908260,3.2539,153.66,153.61,30.7546]
[1727359908864,2.7093,153.7,153.61,27.5]
[1727359909059,2.7093,153.7,153.58,27.5]
[1727359909558,2.7093,153.7,153.61,3.2547]
[1727359909763,2.7093,153.7,153.61,27.5]
[1727359909961,2.7093,153.7,153.61,30.7547]
[1727359910165,2.7093,153.7,153.61,27.5]
[1727359910359,2.7093,153.7,153.58,27.5]
[1727359910964,3.2544,153.63,153.59,3.255]
[1727359911164,30.2093,153.7,153.56,78.1]
[1727359911463,30.2093,153.7,153.58,3.2553]
[1727359911657,30.2093,153.7,153.58,27.5]
[1727359911658,2.7093,153.7,153.58,27.5]
[1727359911862,2.7093,153.7,153.6,27.5]
[1727359912260,2.7093,153.7,153.57,28.8003]
[1727359912770,2.7093,153.7,153.6,27.5]
[1727359913568,3.2539,153.66,153.62,3.2546]
[1727359913758,2.7093,153.7,153.6,27.5]
[1727359914266,2.7093,153.7,153.57,28.8003]
[1727359914670,2.7093,153.7,153.58,3.2553]
[1727359914858,2.7093,153.7,153.57,28.8003]
[1727359915274,1.349,153.73,153.63,27.5]
[1727359915466,1.3516,153.77,153.66,27.5]
[1727359915666,3.2523,153.73,153.69,3.253]
[1727359916765,1.3516,153.77,153.69,27.5]
[1727359916966,2.7845,153.8,153.69,27.5]
[1727359917162,3.2518,153.76,153.71,3.2525]
[1727359917471,2.7845,153.8,153.71,3.2525]
[1727359917858,2.7845,153.8,153.69,27.5]
[1727359918170,30.2845,153.8,153.67,2.6145]
[1727359918372,3.2526,153.72,153.67,2.6145]
[1727359918969,30.2845,153.8,153.67,2.6145]
[1727359919165,30.2845,153.8,153.67,1.3372]
[1727359919367,27.5,153.78,153.66,27.5]
[1727359919575,3.2533,153.69,153.65,3.2539]
[1727359919768,27.5,153.78,153.64,3.30166095]
[1727359919963,27.5,153.78,153.64,3.254]
[1727359920271,27.5,153.78,153.63,27.5]
[1727359920272,27.5,153.75,153.63,27.5]
[1727359920468,1.2949,153.74,153.61,2.6492]
[1727359920664,1.2949,153.74,153.62,27.5]
[1727359920875,1.2949,153.74,153.63,3.22163251]
[1727359921177,1.2949,153.74,153.62,27.5]
[1727359921763,1.2949,153.74,153.63,3.17732837]
[1727359921969,1.2949,153.74,153.62,27.5]
[1727359922274,3.2535,153.67,153.63,3.2542]
[1727359922570,1.2949,153.74,153.62,27.5]
[1727359924468,1.2949,153.74,153.61,2.6492]
[1727359924469,1.2949,153.74,153.63,3.26422243]
[1727359924970,1.2949,153.74,153.66,3.2536]
[1727359925274,1.2949,153.74,153.64,3.26845462]
[1727359925474,1.2949,153.74,153.62,27.5]
[1727359925475,3.2534,153.68,153.62,27.5]
[1727359925674,1.2949,153.74,153.62,27.5]
[1727359925877,27.5,153.79,153.65,27.5]
[1727359926079,1.267,153.79,153.68,27.5]
[1727359926469,3.252,153.75,153.71,3.2525]
[1727359926668,1.267,153.79,153.71,3.2525]
[1727359926873,1.267,153.79,153.69,1.2792]
[1727359926874,1.267,153.79,153.69,4.47637484]
[1727359927078,3.2524,153.73,153.69,4.5323]
[1727359927776,1.267,153.79,153.69,1.2792]
[1727359928581,1.3087,153.85,153.73,27.5]
[1727359929376,3.2511,153.79,153.75,3.2518]
[1727359929582,1.3087,153.85,153.73,27.5]
[1727359929971,3.2508,153.8,153.73,27.5]
[1727359930175,108.0,153.89,153.69,28.7792]
[1727359930176,108.0,153.89,153.76,27.5]
[1727359930375,1.3386,153.88,153.76,27.5]
[1727359930675,1.3386,153.88,153.77,3.2513]
[1727359930868,1.3386,153.88,153.73,27.5]
[1727359931474,27.5,153.86,153.72,78.08]
[1727359931672,3.2515,153.77,153.73,3.2522]
[1727359931874,1.3829,153.85,153.72,78.08]
[1727359932081,27.5,153.83,153.72,78.08]
[1727359932880,3.252,153.75,153.72,78.08]
[1727359933574,27.5,153.83,153.72,78.08]
[1727359933878,27.5,153.83,153.72,81.3324]
[1727359934082,3.2519,153.75,153.72,78.08]
[1727359934279,27.5,153.83,153.72,78.08]
[1727359934679,27.5,153.83,153.71,27.5]
[1727359934879,27.5,153.83,153.69,1.2792]
[1727359935078,7.8179,153.84,153.69,1.2792]
[1727359935079,27.5,153.81,153.69,1.2792]
[1727359935281,3.2525,153.73,153.69,1.2792]
[1727359935480,1.2672,153.8,153.69,1.2792]
[1727359935680,3.2528,153.71,153.69,1.2792]
[1727359935879,1.2672,153.8,153.69,1.2792]
[1727359936284,3.2528,153.71,153.69,1.2792]
[1727359936485,1.2672,153.8,153.69,1.2792]
[1727359937080,1.2672,153.8,153.65,105.58]
[1727359937278,1.2672,153.8,153.66,1.3532]
[1727359937476,3.2525,153.72,153.68,3.2531]
[1727359937882,1.2672,153.8,153.68,3.2531]
[1727359938090,1.2672,153.8,153.66,1.3532]
[1727359938578,3.2523,153.73,153.69,3.2529]
[1727359938777,1.2672,153.8,153.66,1.3532]
[1727359939175,1.2672,153.8,153.67,3.2533]
[1727359939176,3.253,153.7,153.67,3.2533]
[1727359939378,27.5,153.78,153.66,1.3532]
[1727359939682,27.5,153.78,153.65,81.37927966]
[1727359939683,27.5,153.75,153.65,78.08]
[1727359940888,3.2537,153.66,153.65,78.08]
[1727359941088,1.2672,153.8,153.65,78.08]
[1727359941284,1.2672,153.8,153.68,27.5]
[1727359941285,3.2526,153.72,153.68,27.5]
[1727359941489,2.6036,153.79,153.68,27.5]
[1727359941490,2.6036,153.79,153.68,30.72821323]
[1727359941685,2.6036,153.79,153.66,1.3098]
[1727359942191,27.5,153.77,153.65,78.08]
[1727359942590,3.2537,153.66,153.65,78.08]
[1727359944195,6.5034,153.76,153.61,1.3098]
[1727359944485,6.5034,153.76,153.65,3.2539]
[1727359944692,6.5034,153.76,153.63,27.5]
[1727359944889,6.5038,153.75,153.61,1.3098]
[1727359945088,2.6036,153.79,153.63,27.5]
[1727359945393,6.5025,153.78,153.63,27.5]
[1727359945591,2.6036,153.79,153.63,27.5]
[1727359946095,3.2534,153.68,153.65,3.2539]
[1727359946485,27.5,153.74,153.61,1.3098]
[1727359946691,27.5,153.72,153.57,78.08]
[1727359946993,2.7789,153.71,153.57,78.08]
[1727359947388,2.7789,153.71,153.59,3.2551]
[1727359947389,3.2547,153.62,153.59,3.2551]
[1727359947591,2.7789,153.71,153.57,78.08]
[1727359948190,6.5059,153.7,153.57,78.08]
[1727359948595,3.255,153.61,153.57,81.3355]
[1727359948895,6.5059,153.7,153.57,81.3355]
[1727359949083,34.0063,153.69,153.57,78.08]
[1727359949487,6.5068,153.68,153.57,78.08]
[1727359950091,3.2552,153.6,153.57,81.3356]
[1727359950492,19.72,153.83,153.59,27.5]
[1727359950696,19.72,153.83,153.57,78.08]
[1727359950697,1.3323,153.73,153.62,27.5]
[1727359950893,3.2532,153.69,153.65,3.2539]
[1727359951096,1.3323,153.73,153.62,27.5]
[1727359951397,1.3323,153.73,153.65,3.2538]
[1727359951589,1.3231,153.75,153.65,27.5]
[1727359951986,1.3231,153.75,153.66,3.2536]
[1727359952690,1.3231,153.75,153.64,44.66]
[1727359953093,1.3231,153.75,153.66,3.2536]
[1727359953293,1.3231,153.75,153.64,44.66]
[1727359953488,1.3231,153.75,153.61,44.66]
[1727359953689,1.3231,153.75,153.62,3.2544]
[1727359953892,1.3323,153.77,153.68,44.66]
[1727359954094,1.3323,153.77,153.68,47.86759015]
[1727359954399,47.2185,153.83,153.68,47.86759015]
[1727359954400,2.5585,153.83,153.71,44.66]
[1727359954599,3.8478,153.83,153.71,44.66]
[1727359954799,3.2512,153.78,153.71,44.66]
[1727359954999,3.8478,153.83,153.71,44.66]
[1727359955194,3.8478,153.83,153.71,47.96230438]
[1727359955494,3.8478,153.83,153.71,44.66]
[1727359955690,3.8478,153.83,153.69,122.76]
[1727359955893,3.8478,153.83,153.69,126.0131]
[1727359956599,44.66,153.81,153.69,44.66]
[1727359957202,3.2524,153.73,153.69,44.66]
[1727359958801,3.2524,153.73,153.69,47.9131]
[1727359959601,44.66,153.81,153.69,44.66]
[1727359959798,3.8478,153.83,153.66,44.66]
[1727359959999,44.66,153.78,153.64,78.08]
[1727359960202,6.5008,153.82,153.64,78.08]
[1727359960397,51.1608,153.82,153.64,78.08]
[1727359960704,51.1608,153.82,153.67,3.2533]
[1727359960904,51.1608,153.82,153.64,78.08]
[1727359960905,6.5008,153.82,153.64,78.08]
[1727359961099,44.66,153.79,153.65,3.27009274]
[1727359961296,44.66,153.79,153.62,71.50844241]
[1727359961495,6.5008,153.82,153.66,44.66]
[1727359961804,3.2528,153.71,153.66,51.20972333]
[1727359962302,48.5078,153.83,153.69,44.66]
[1727359962606,3.8478,153.83,153.72,44.66]
[1727359963000,3.8478,153.83,153.69,44.66]
[1727359963401,3.2527,153.71,153.68,3.21198516]
[1727359963603,44.66,153.81,153.66,44.66]
[1727359963900,44.66,153.81,153.68,3.2533]
[1727359964102,44.66,153.81,153.69,44.66]
[1727359965205,44.66,153.81,153.66,3.31218686]
[1727359965206,3.2527,153.71,153.66,51.22588686]
[1727359965407,44.66,153.81,153.66,44.66]
[1727359965608,3.2526,153.72,153.66,51.2153763]
[1727359965905,44.66,153.78,153.63,44.66]
[1727359967003,44.66,153.75,153.62,74.76294241]
[1727359967210,3.9838,153.74,153.62,71.50844241]
[1727359967406,3.9838,153.74,153.61,122.74]
[1727359967407,44.66,153.73,153.61,122.74]
[1727359968012,44.71,153.71,153.57,44.71]
[1727359968306,44.71,153.69,153.56,3.27595183]
[1727359968509,3.2549,153.61,153.54,44.71]
[1727359968709,44.71,153.69,153.56,3.2557]
[1727359968907,3.2549,153.61,153.56,3.2557]
[1727359969305,3.2549,153.61,153.57,3.2556]
[1727359970910,44.71,153.66,153.52,78.08]
[1727359971110,2.5892,153.65,153.52,78.08]
[1727359971314,3.8908,153.65,153.52,78.08]
[1727359972204,3.24406117,153.75,153.52,78.08]
[1727359972205,44.71,153.72,153.59,44.71]
[1727359972404,3.8908,153.74,153.59,48.04658917]
[1727359972604,3.2538,153.66,153.62,3.2544]
[1727359973012,3.8908,153.74,153.59,48.04658917]
[1727359973209,3.2539,153.66,153.61,3.2546]
[1727359973514,3.2539,153.66,153.59,48.04658917]
[1727359973709,3.2539,153.66,153.61,3.2548]
[1727359973904,3.2539,153.66,153.59,48.04658917]
[1727359974309,3.2541,153.65,153.61,3.2546]
[1727359975110,3.2541,153.65,153.59,30.83658917]
[1727359975409,31.3908,153.74,153.59,27.5]
[1727359975616,31.3908,153.74,153.61,3.2548]
[1727359975916,31.3908,153.74,153.59,27.5]
[1727359976108,31.3908,153.74,153.62,3.2544]
[1727359976308,3.2538,153.66,153.62,3.2544]
[1727359977422,3.2539,153.65,153.62,3.2544]
[1727359977616,3.2539,153.65,153.61,3.2547]
[1727359977813,3.8908,153.74,153.58,3.17990204]
[1727359977814,44.69,153.72,153.58,3.17990204]
[1727359978119,44.69,153.69,153.58,3.2553]
[1727359978313,3.8908,153.74,153.52,78.08]
[1727359978314,44.69,153.66,153.52,78.08]
[1727359978515,3.2551,153.6,153.52,78.08]
[1727359978709,1.3537,153.65,153.53,6.53945712]
[1727359978914,3.2554,153.59,153.52,78.08]
[1727359979216,46.0299,153.64,153.54,3.2561]
[1727359979611,46.0299,153.64,153.54,3.23268842]
[1727359980008,3.2556,153.58,153.52,78.08]
[1727359980510,3.2553,153.59,153.52,78.08]
[1727359980712,46.0299,153.64,153.52,78.08]
[1727359980912,2.6601,153.65,153.52,122.77]
[1727359981812,3.2553,153.59,153.52,122.77]
[1727359982010,2.6601,153.65,153.52,78.08]
[1727359982212,44.69,153.63,153.52,78.08]
[1727359982406,44.69,153.63,153.47,44.69]
[1727359982407,44.69,153.58,153.44,44.69]
[1727359982607,44.69,153.58,153.45,6.53627586]
[1727359982812,2.6549,153.57,153.46,3.20693249]
[1727359983012,2.6549,153.57,153.44,44.69]
[1727359983212,2.6549,153.57,153.45,6.53626844]
[1727359983417,3.2564,153.54,153.49,3.2572]
[1727359983718,2.6549,153.57,153.44,44.69]
[1727359984017,3.2565,153.53,153.44,47.88878811]
[1727359984413,44.69,153.55,153.4,78.12]
[1727359984615,44.76,153.52,153.44,3.2583]
[1727359984814,44.76,153.52,153.4,78.12]
[1727359985114,1.3175,153.54,153.46,3.2578]
[1727359985514,1.3175,153.54,153.4,81.32237164]
[1727359985711,1.3175,153.54,153.4,126.08237164]
[1727359985914,1.3175,153.54,153.43,44.76]
[1727359986111,2.6549,153.57,153.5,3.2571]
[1727359986313,2.6549,153.57,153.43,44.76]
[1727359986518,3.2566,153.53,153.43,44.76]
[1727359986821,2.6549,153.57,153.43,44.76]
[1727359987017,3.2565,153.53,153.43,44.76]
[1727359987320,2.6549,153.57,153.43,44.76]
[1727359987720,2.6549,153.57,153.48,3.2573]
[1727359987914,2.6549,153.57,153.43,44.76]
[1727359988115,3.2564,153.54,153.43,44.76]
[1727359988315,2.6549,153.57,153.43,44.76]
[1727359988713,2.6549,153.57,153.48,3.2574]
[1727359988714,3.2568,153.52,153.48,3.2574]
[1727359988916,3.2568,153.52,153.43,44.76]
[1727359989117,2.6549,153.57,153.43,44.76]
[1727359989621,44.76,153.55,153.41,44.76]
[1727359990125,44.76,153.52,153.4,81.32237164]
[1727359990427,3.2577,153.48,153.44,3.2582]
[1727359990720,44.76,153.52,153.4,78.12]
[1727359990924,44.76,153.52,153.42,3.2587]
[1727359991224,44.76,153.5,153.4,78.12]
[1727359991624,44.76,153.53,153.4,78.12]
[1727359991820,3.2577,153.48,153.4,78.12]
[1727359992024,44.76,153.53,153.43,3.2586]
[1727359992217,44.76,153.5,153.4,78.12]
[1727359992424,3.2583,153.45,153.4,78.12]
[1727359992831,1.3049,153.49,153.4,78.12]
[1727359993135,2.5987,153.49,153.4,78.12]
[1727359993423,3.2582,153.45,153.4,78.12]
[1727359993826,2.5987,153.49,153.42,3.2588]
[1727359994030,3.2583,153.45,153.42,3.2588]
[1727359994321,3.2583,153.45,153.41,3.2589]
[1727359994522,3.2586,153.43,153.4,78.12]
[1727359994917,2.5987,153.49,153.4,81.3791]